fUST/lending_fUST_20241205
["ID","MTS","AMOUNT","RATE_DAILY","PERIOD"]
[344297563,1733331067702,-500.0,0.00026301,7]
[344297564,1733331067712,-500.0,0.00026301,7]
[344297565,1733331067723,-3667.14,0.00026301,7]
[344297566,1733331067733,-500.0,0.00026301,7]
[344297567,1733331067743,-197.60593461,0.00026301,7]
[344297568,1733331067758,-500.0,0.00026301,7]
[344297569,1733331067767,-500.0,0.00026301,7]
[344297570,1733331067778,-619.76,0.00026301,7]
[344297571,1733331067789,-500.0,0.00026301,7]
[344297572,1733331067800,-500.0,0.00026301,7]
[344297573,1733331067811,-500.0,0.00026301,7]
[344297574,1733331067821,-500.0,0.00026301,7]
[344297575,1733331067832,-1922.249001,0.00026301,7]
[344297576,1733331067843,-500.0,0.00026301,7]
[344297577,1733331067854,-1604.41,0.00026301,7]
[344297578,1733331067864,-1922.249001,0.00026301,7]
[344297579,1733331067876,-519.22871882,0.00026301,7]
[344297580,1733331067889,-564.17,0.00026301,7]
[344297581,1733331067900,-2600.34,0.00026301,7]
[344297582,1733331067909,-653.89,0.00026301,7]
[344297583,1733331067921,-523.19,0.00026301,7]
[344297584,1733331067931,-500.0,0.00026301,7]
[344297585,1733331067941,-500.0,0.00026301,7]
[344297586,1733331067950,-500.0,0.00026301,7]
[344297587,1733331067961,-500.0,0.00026301,7]
[344297588,1733331067972,-500.0,0.00026301,7]
[344297589,1733331067982,-500.0,0.00026301,7]
[344297590,1733331067992,-2252.96,0.00026301,7]
[344297591,1733331068005,-1103.9,0.00026301,7]
[344297592,1733331068017,-200.0,0.00026301,7]
[344297593,1733331068028,-3483.6,0.00026301,7]
[344297594,1733331068039,-500.0,0.00026301,7]
[344297595,1733331068050,-998.79,0.00026301,7]
[344297596,1733331068060,-858.72,0.00026301,7]
[344297597,1733331068070,-1250.23,0.00026301,7]
[344297598,1733331068080,-500.0,0.00026301,7]
[344297599,1733331068091,-500.0,0.00026301,7]
[344297600,1733331068101,-1250.59,0.00026301,7]
[344297601,1733331068112,-500.0,0.00026301,7]
[344297602,1733331068122,-674.47,0.00026301,7]
[344297603,1733331068133,-417.127008,0.00026301,7]
[344297604,1733331068144,-1017.66,0.00026301,7]
[344297605,1733331068154,-417.127008,0.00026301,7]
[344297606,1733331068165,-1138.79,0.00026301,7]
[344297607,1733331068174,-634.97,0.00026301,7]
[344297608,1733331068184,-500.0,0.00026301,7]
[344297609,1733331068195,-241.18022422,0.00026301,7]
[344297610,1733331068204,-3400.47,0.00026301,7]
[344297611,1733331068214,-500.0,0.00026301,7]
[344297612,1733331068224,-500.0,0.00026301,7]
[344297613,1733331068233,-2026.96,0.00026301,7]
[344297614,1733331068244,-500.0,0.00026301,7]
[344297615,1733331068256,-500.0,0.00026301,7]
[344297616,1733331068266,-500.0,0.00026301,7]
[344297617,1733331068276,-1041.8,0.00026301,7]
[344297618,1733331068286,-1115.9,0.00026301,7]
[344297619,1733331068296,-500.0,0.00026301,7]
[344297620,1733331068306,-591.81,0.00026301,7]
[344297621,1733331068316,-653.03,0.00026301,7]
[344297622,1733331068326,-619.71,0.00026301,7]
[344297623,1733331068336,-1337.24,0.00026301,7]
[344297624,1733331068349,-1180.0,0.00026301,7]
[344297625,1733331068359,-500.0,0.00026301,7]
[344297626,1733331068369,-618.75,0.00026301,7]
[344297627,1733331068379,-500.0,0.00026301,7]
[344297628,1733331068390,-1246.36,0.00026301,7]
[344297629,1733331068400,-729.23,0.00026301,7]
[344297630,1733331068409,-1111.43,0.00026301,7]
[344297631,1733331068420,-688.99,0.00026301,7]
[344297632,1733331068429,-1165.34,0.00026301,7]
[344297633,1733331068440,-516.18,0.00026301,7]
[344297634,1733331068450,-771.77,0.00026301,7]
[344297635,1733331068459,-660.0,0.00026384,2]
[344297636,1733331068469,-754.47239395,0.00026522,2]
[344297637,1733331068479,-1500.0,0.00026522,2]
[344297638,1733331068489,-160.0,0.00026574,2]
[344297639,1733331068499,-151.0,0.00026574,7]
[344297640,1733331068510,-154.163264,0.00026574,7]
[344297641,1733331068521,-154.163264,0.00026574,7]
[344297642,1733331068531,-369.173032,0.00026574,7]
[344297643,1733331068541,-369.173032,0.00026574,7]
[344297644,1733331068551,-151.0,0.00026575,7]
[344297645,1733331068561,-151.0,0.00026575,7]
[344297646,1733331068572,-181.380878,0.00026575,7]
[344297647,1733331068581,-288.103226,0.00026575,7]
[344297648,1733331068592,-550.48,0.00026575,7]
[344297649,1733331068602,-663.28,0.00026575,7]
[344297650,1733331068612,-500.0,0.00026575,7]
[344297651,1733331068622,-647.17,0.00026575,7]
[344297652,1733331068632,-500.0,0.00026575,7]
[344297653,1733331068642,-217.555788,0.00026575,7]
[344297654,1733331068652,-742.07,0.00026575,7]
[344297655,1733331068662,-731.67,0.00026575,7]
[344297656,1733331068672,-500.0,0.00026575,7]
[344297657,1733331068682,-164.382574,0.00026575,7]
[344297658,1733331068692,-164.382574,0.00026575,7]
[344297659,1733331068703,-794.46,0.00026575,7]
[344297660,1733331068713,-151.0,0.00026575,7]
[344297661,1733331068722,-500.0,0.00026575,7]
[344297662,1733331068733,-500.0,0.00026575,7]
[344297663,1733331068743,-500.0,0.00026575,7]
[344297664,1733331068755,-557.44,0.00026575,7]
[344297665,1733331068765,-500.0,0.00026575,7]
[344297666,1733331068775,-500.0,0.00026575,7]
[344297667,1733331068785,-500.0,0.00026575,7]
[344297668,1733331068795,-782.05,0.00026575,7]
[344297669,1733331068805,-500.0,0.00026575,7]
[344297670,1733331068815,-500.0,0.00026575,7]
[344297671,1733331068824,-500.0,0.00026575,7]
[344297672,1733331068834,-1159.1,0.00026575,7]
[344297673,1733331068844,-238.736578,0.00026575,7]
[344297674,1733331068853,-238.736578,0.00026575,7]
[344297675,1733331068863,-720.5,0.00026575,7]
[344297676,1733331068874,-500.0,0.00026575,7]
[344297677,1733331068883,-500.0,0.00026575,7]
[344297678,1733331068893,-500.0,0.00026575,7]
[344297679,1733331068905,-856.58,0.00026575,7]
[344297680,1733331068916,-500.0,0.00026575,7]
[344297681,1733331068926,-500.0,0.00026575,7]
[344297682,1733331068936,-1402.3,0.00026575,7]
[344297683,1733331068946,-500.0,0.00026575,7]
[344297684,1733331068957,-500.0,0.00026575,7]
[344297685,1733331068967,-500.0,0.00026575,7]
[344297686,1733331068979,-500.0,0.00026575,7]
[344297687,1733331068990,-500.0,0.00026575,7]
[344297688,1733331069003,-572.72,0.00026575,7]
[344297689,1733331069013,-692.0,0.00026575,7]
[344297690,1733331069022,-1434.53,0.00026575,7]
[344297691,1733331069032,-500.0,0.00026575,7]
[344297692,1733331069042,-500.0,0.00026575,7]
[344297693,1733331069052,-246.62643671,0.00026575,7]
[344297694,1733331069062,-1335.07,0.00026575,7]
[344297695,1733331069072,-151.0,0.00026575,7]
[344297696,1733331069083,-1241.02,0.00026575,7]
[344297697,1733331069093,-1393.96,0.00026575,7]
[344297698,1733331069102,-522.4,0.00026575,7]
[344297699,1733331069113,-500.0,0.00026575,7]
[344297700,1733331069123,-316.02,0.00026575,7]
[344297701,1733331069133,-620.02,0.00026575,7]
[344297702,1733331069143,-2348.359385,0.00026575,7]
[344297703,1733331069153,-942.07,0.00026575,7]
[344297704,1733331069163,-500.0,0.00026575,7]
[344297705,1733331069172,-500.0,0.00026575,7]
[344297706,1733331069182,-2348.359385,0.00026575,7]
[344297707,1733331069191,-501.38,0.00026575,7]
[344297708,1733331069201,-940.36,0.00026575,7]
[344297709,1733331069211,-500.0,0.00026575,7]
[344297710,1733331069220,-500.0,0.00026575,7]
[344297711,1733331069230,-500.0,0.00026575,7]
[344297712,1733331069239,-500.0,0.00026575,7]
[344297713,1733331069249,-500.0,0.00026575,7]
[344297714,1733331069362,-500.0,0.00026575,7]
[344297715,1733331069374,-500.0,0.00026575,7]
[344297716,1733331069384,-500.0,0.00026575,7]
[344297717,1733331069394,-294.151286,0.00026575,7]
[344297718,1733331069404,-500.0,0.00026575,7]
[344297719,1733331069414,-541.2,0.00026575,7]
[344297720,1733331069424,-294.151286,0.00026575,7]
[344297721,1733331069434,-500.0,0.00026575,7]
[344297722,1733331069443,-668.95,0.00026575,7]
[344297723,1733331069453,-614.53,0.00026575,7]
[344297724,1733331069462,-210.25506,0.00026575,7]
[344297725,1733331069472,-500.0,0.00026575,7]
[344297726,1733331069481,-500.0,0.00026575,7]
[344297727,1733331069491,-732.18,0.00026575,7]
[344297728,1733331069503,-210.25506,0.00026575,7]
[344297729,1733331069512,-500.0,0.00026575,7]
[344297730,1733331069523,-500.0,0.00026575,7]
[344297731,1733331069533,-500.0,0.00026575,7]
[344297732,1733331069543,-500.0,0.00026575,7]
[344297733,1733331069553,-500.0,0.00026575,7]
[344297734,1733331069563,-500.0,0.00026575,7]
[344297735,1733331069572,-500.0,0.00026575,7]
[344297736,1733331069582,-500.0,0.00026575,7]
[344297737,1733331069592,-1219.41,0.00026575,7]
[344297738,1733331069602,-698.01,0.00026575,7]
[344297739,1733331069611,-500.0,0.00026575,7]
[344297740,1733331069621,-2033.51,0.00026575,7]
[344297741,1733331069631,-500.0,0.00026575,7]
[344297742,1733331069641,-2896.6,0.00026575,7]
[344297743,1733331069651,-500.0,0.00026575,7]
[344297744,1733331069660,-500.0,0.00026575,7]
[344297745,1733331069669,-549.47,0.00026575,7]
[344297746,1733331069679,-500.0,0.00026575,7]
[344297747,1733331069689,-521.79,0.00026575,7]
[344297748,1733331069699,-1363.71,0.00026575,7]
[344297749,1733331069709,-500.0,0.00026575,7]
[344297750,1733331069719,-151.0,0.00026575,7]
[344297751,1733331069730,-151.0,0.00026575,7]
[344297752,1733331069740,-650.65,0.00026575,7]
[344297753,1733331069751,-10576.83,0.00026575,7]
[344297754,1733331069760,-506.57069728,0.00026575,7]
[344297755,1733331069770,-500.65,0.00026575,7]
[344297756,1733331069780,-500.0,0.00026575,7]
[344297757,1733331069790,-1115.404548,0.00026575,7]
[344297758,1733331069799,-612.787327,0.00026575,7]
[344297759,1733331069809,-1115.404548,0.00026575,7]
[344297760,1733331069819,-684.15,0.00026575,7]
[344297761,1733331069828,-500.0,0.00026575,7]
[344297762,1733331069839,-612.787327,0.00026575,7]
[344297763,1733331069849,-500.0,0.00026575,7]
[344297764,1733331069859,-500.0,0.00026575,7]
[344297765,1733331069869,-1465.31,0.00026575,7]
[344297766,1733331069883,-792.7,0.00026575,7]
[344297767,1733331069894,-606.68,0.00026575,7]
[344297768,1733331069904,-1072.01,0.00026575,7]
[344297769,1733331069913,-500.0,0.00026575,7]
[344297770,1733331069923,-690.93,0.00026575,7]
[344297771,1733331069934,-500.0,0.00026575,7]
[344297772,1733331069948,-500.0,0.00026575,7]
[344297773,1733331069959,-200.0,0.00026575,7]
[344297774,1733331069969,-531.42398939,0.00026575,7]
[344297775,1733331069979,-1130.9,0.00026575,7]
[344297776,1733331069989,-766.18,0.00026575,7]
[344297777,1733331069998,-979.02,0.00026575,7]
[344297778,1733331070012,-500.0,0.00026575,7]
[344297779,1733331070023,-5398.24,0.00026575,7]
[344297780,1733331070032,-500.0,0.00026575,7]
[344297781,1733331070042,-959.45,0.00026575,7]
[344297782,1733331070052,-637.8,0.00026575,7]
[344297783,1733331070062,-571.56,0.00026575,7]
[344297784,1733331070072,-500.0,0.00026575,7]
[344297785,1733331070083,-12106.03,0.00026575,7]
[344297786,1733331070103,-500.0,0.00026575,7]
[344297787,1733331070122,-1073.97,0.00026575,7]
[344297788,1733331070132,-500.0,0.00026575,7]
[344297789,1733331070142,-500.0,0.00026575,7]
[344297790,1733331070151,-500.0,0.00026575,7]
[344297791,1733331070160,-3667.14,0.00026575,7]
[344297792,1733331070169,-500.0,0.00026575,7]
[344297793,1733331070179,-500.0,0.00026575,7]
[344297794,1733331070188,-500.0,0.00026575,7]
[344297795,1733331070198,-619.76,0.00026575,7]
[344297796,1733331070207,-500.0,0.00026575,7]
[344297797,1733331070217,-500.0,0.00026575,7]
[344297798,1733331070226,-500.0,0.00026575,7]
[344297799,1733331070237,-500.0,0.00026575,7]
[344297800,1733331070247,-1922.249001,0.00026575,7]
[344297801,1733331070264,-500.0,0.00026575,7]
[344297802,1733331070274,-1604.41,0.00026575,7]
[344297803,1733331070284,-1922.249001,0.00026575,7]
[344297804,1733331070293,-564.17,0.00026575,7]
[344297805,1733331070303,-2600.34,0.00026575,7]
[344297806,1733331070313,-653.89,0.00026575,7]
[344297807,1733331070322,-523.19,0.00026575,7]
[344297808,1733331070332,-500.0,0.00026575,7]
[344297809,1733331070342,-500.0,0.00026575,7]
[344297810,1733331070351,-500.0,0.00026575,7]
[344297811,1733331070361,-561.88810177,0.00026575,7]
[344297812,1733331070371,-500.0,0.00026575,7]
[344297813,1733331070381,-500.0,0.00026575,7]
[344297814,1733331070390,-2252.96,0.00026575,7]
[344297815,1733331070401,-1103.9,0.00026575,7]
[344297816,1733331070411,-200.0,0.00026575,7]
[344297817,1733331070421,-3483.6,0.00026575,7]
[344297818,1733331070431,-500.0,0.00026575,7]
[344297819,1733331070441,-998.79,0.00026575,7]
[344297820,1733331070450,-858.72,0.00026575,7]
[344297821,1733331070459,-1250.23,0.00026575,7]
[344297822,1733331070469,-500.0,0.00026575,7]
[344297823,1733331070478,-500.0,0.00026575,7]
[344297824,1733331070488,-1250.59,0.00026575,7]
[344297825,1733331070498,-576.03603166,0.00026575,7]
[344297826,1733331070512,-674.47,0.00026575,7]
[344297827,1733331070523,-417.127008,0.00026575,7]
[344297828,1733331070533,-1017.66,0.00026575,7]
[344297829,1733331070542,-417.127008,0.00026575,7]
[344297830,1733331070552,-1138.79,0.00026575,7]
[344297831,1733331070562,-634.97,0.00026575,7]
[344297832,1733331070571,-3400.47,0.00026575,7]
[344297833,1733331070581,-609.4124781,0.00026575,7]
[344297834,1733331070592,-190.8,0.00026575,7]
[344297835,1733331070602,-2026.96,0.00026575,7]
[344297836,1733331070612,-500.0,0.00026575,7]
[344297837,1733331070623,-500.0,0.00026575,7]
[344297838,1733331070633,-440.42584179,0.00026575,7]
[344297839,1733331070643,-1041.8,0.00026575,7]
[344297840,1733331070654,-1115.9,0.00026575,7]
[344297841,1733331070665,-500.0,0.00026575,7]
[344297842,1733331070677,-591.81,0.00026575,7]
[344297843,1733331070689,-653.03,0.00026575,7]
[344297844,1733331070700,-619.71,0.00026575,7]
[344297845,1733331070710,-1337.24,0.00026575,7]
[344297846,1733331070721,-1180.0,0.00026575,7]
[344297847,1733331070732,-500.0,0.00026575,7]
[344297848,1733331070743,-618.75,0.00026575,7]
[344297849,1733331070758,-500.0,0.00026575,7]
[344297850,1733331070769,-1246.36,0.00026575,7]
[344297851,1733331070780,-729.23,0.00026575,7]
[344297852,1733331070790,-164.179794,0.00026575,7]
[344297853,1733331070801,-1111.43,0.00026575,7]
[344297854,1733331070813,-164.179794,0.00026575,7]
[344297855,1733331070824,-688.99,0.00026575,7]
[344297856,1733331070834,-1165.34,0.00026575,7]
[344297857,1733331070846,-516.18,0.00026575,7]
[344297858,1733331070856,-771.77,0.00026575,7]
[344297859,1733331070867,-823.0,0.00026619,2]
[344297860,1733331070880,-1125.19435932,0.00026684,2]
[344297861,1733331070892,-2977.98551497,0.00026746,2]
[344297862,1733331070902,-151.0,0.0002681,5]
[344297863,1733331070912,-160.0,0.00026848,2]
[344297864,1733331070923,-151.0,0.00026848,7]
[344297865,1733331070934,-151.0,0.00026849,7]
[344297866,1733331070944,-154.223238,0.00026849,7]
[344297867,1733331070955,-151.0,0.00026849,7]
[344297868,1733331070968,-151.0,0.00026849,7]
[344297869,1733331071076,-157.754633,0.00026849,7]
[344297870,1733331071091,-157.754633,0.00026849,7]
[344297871,1733331071103,-151.0,0.00026849,7]
[344297872,1733331071115,-276.506524,0.00026849,7]
[344297873,1733331071126,-151.0,0.00026849,7]
[344297874,1733331071137,-276.506524,0.00026849,7]
[344297875,1733331071150,-550.48,0.00026849,7]
[344297876,1733331071160,-663.28,0.00026849,7]
[344297877,1733331071171,-500.0,0.00026849,7]
[344297878,1733331071182,-647.17,0.00026849,7]
[344297879,1733331071192,-500.0,0.00026849,7]
[344297880,1733331071203,-742.07,0.00026849,7]
[344297881,1733331071214,-154.163264,0.00026849,7]
[344297882,1733331071224,-154.163264,0.00026849,7]
[344297883,1733331071234,-731.67,0.00026849,7]
[344297884,1733331071245,-646.68858875,0.00026849,7]
[344297885,1733331071258,-164.382574,0.00026849,7]
[344297886,1733331071270,-164.382574,0.00026849,7]
[344297887,1733331071281,-794.46,0.00026849,7]
[344297888,1733331071291,-153.285517,0.00026849,7]
[344297889,1733331071302,-369.173032,0.00026849,7]
[344297890,1733331071313,-369.173032,0.00026849,7]
[344297891,1733331071323,-500.0,0.00026849,7]
[344297892,1733331071334,-500.0,0.00026849,7]
[344297893,1733331071345,-500.0,0.00026849,7]
[344297894,1733331071355,-557.44,0.00026849,7]
[344297895,1733331071366,-500.0,0.00026849,7]
[344297896,1733331071377,-505.50948391,0.00026849,7]
[344297897,1733331071387,-500.0,0.00026849,7]
[344297898,1733331071398,-782.05,0.00026849,7]
[344297899,1733331071408,-500.0,0.00026849,7]
[344297900,1733331071418,-500.0,0.00026849,7]
[344297901,1733331071428,-500.0,0.00026849,7]
[344297902,1733331071439,-1159.1,0.00026849,7]
[344297903,1733331071449,-238.736578,0.00026849,7]
[344297904,1733331071459,-238.736578,0.00026849,7]
[344297905,1733331071469,-720.5,0.00026849,7]
[344297906,1733331071480,-292.40454998,0.00026849,7]
[344297907,1733331071490,-500.0,0.00026849,7]
[344297908,1733331071504,-500.0,0.00026849,7]
[344297909,1733331071514,-856.58,0.00026849,7]
[344297910,1733331071528,-500.0,0.00026849,7]
[344297911,1733331071538,-500.0,0.00026849,7]
[344297912,1733331071549,-1402.3,0.00026849,7]
[344297913,1733331071560,-500.0,0.00026849,7]
[344297914,1733331071571,-500.0,0.00026849,7]
[344297915,1733331071581,-500.0,0.00026849,7]
[344297916,1733331071591,-500.0,0.00026849,7]
[344297917,1733331071602,-384.56992477,0.00026849,7]
[344297918,1733331071617,-572.72,0.00026849,7]
[344297919,1733331071627,-692.0,0.00026849,7]
[344297920,1733331071638,-1434.53,0.00026849,7]
[344297921,1733331071648,-500.0,0.00026849,7]
[344297922,1733331071659,-500.0,0.00026849,7]
[344297923,1733331071670,-1335.07,0.00026849,7]
[344297924,1733331071680,-153.799805,0.00026849,7]
[344297925,1733331071691,-1241.02,0.00026849,7]
[344297926,1733331071701,-1393.96,0.00026849,7]
[344297927,1733331071711,-522.4,0.00026849,7]
[344297928,1733331071721,-500.0,0.00026849,7]
[344297929,1733331071731,-620.02,0.00026849,7]
[344297930,1733331071741,-2348.359385,0.00026849,7]
[344297931,1733331071755,-942.07,0.00026849,7]
[344297932,1733331071765,-500.0,0.00026849,7]
[344297933,1733331071774,-500.0,0.00026849,7]
[344297934,1733331071784,-2348.359385,0.00026849,7]
[344297935,1733331071794,-501.38,0.00026849,7]
[344297936,1733331071803,-940.36,0.00026849,7]
[344297937,1733331071813,-500.0,0.00026849,7]
[344297938,1733331071823,-500.0,0.00026849,7]
[344297939,1733331071833,-500.0,0.00026849,7]
[344297940,1733331071843,-500.0,0.00026849,7]
[344297941,1733331071853,-500.0,0.00026849,7]
[344297942,1733331071863,-500.0,0.00026849,7]
[344297943,1733331071874,-500.0,0.00026849,7]
[344297944,1733331071885,-500.0,0.00026849,7]
[344297945,1733331071895,-294.151286,0.00026849,7]
[344297946,1733331071909,-500.0,0.00026849,7]
[344297947,1733331071919,-541.2,0.00026849,7]
[344297948,1733331071929,-294.151286,0.00026849,7]
[344297949,1733331071939,-500.0,0.00026849,7]
[344297950,1733331071949,-668.95,0.00026849,7]
[344297951,1733331071959,-614.53,0.00026849,7]
[344297952,1733331071970,-210.25506,0.00026849,7]
[344297953,1733331071982,-500.0,0.00026849,7]
[344297954,1733331071992,-732.18,0.00026849,7]
[344297955,1733331072006,-210.25506,0.00026849,7]
[344297956,1733331072018,-517.07872995,0.00026849,7]
[344297957,1733331072028,-500.0,0.00026849,7]
[344297958,1733331072038,-500.0,0.00026849,7]
[344297959,1733331072049,-500.0,0.00026849,7]
[344297960,1733331072059,-500.0,0.00026849,7]
[344297961,1733331072069,-500.0,0.00026849,7]
[344297962,1733331072079,-500.0,0.00026849,7]
[344297963,1733331072089,-500.0,0.00026849,7]
[344297964,1733331072099,-1219.41,0.00026849,7]
[344297965,1733331072110,-698.01,0.00026849,7]
[344297966,1733331072120,-500.0,0.00026849,7]
[344297967,1733331072130,-2033.51,0.00026849,7]
[344297968,1733331072140,-162.96316682,0.00026849,7]
[344297969,1733331072150,-2896.6,0.00026849,7]
[344297970,1733331072159,-500.0,0.00026849,7]
[344297971,1733331072170,-250.12049086,0.00026849,7]
[344297972,1733331072180,-549.47,0.00026849,7]
[344297973,1733331072190,-512.64843603,0.00026849,7]
[344297974,1733331072200,-521.79,0.00026849,7]
[344297975,1733331072211,-1363.71,0.00026849,7]
[344297976,1733331072221,-500.0,0.00026849,7]
[344297977,1733331072241,-151.0,0.00026849,7]
[344297978,1733331072253,-650.65,0.00026849,7]
[344297979,1733331072265,-151.0,0.00026849,7]
[344297980,1733331072276,-10576.83,0.00026849,7]
[344297981,1733331072285,-500.65,0.00026849,7]
[344297982,1733331072295,-500.0,0.00026849,7]
[344297983,1733331072305,-1115.404548,0.00026849,7]
[344297984,1733331072315,-612.787327,0.00026849,7]
[344297985,1733331072325,-1115.404548,0.00026849,7]
[344297986,1733331072335,-684.15,0.00026849,7]
[344297987,1733331072345,-612.787327,0.00026849,7]
[344297988,1733331072355,-500.0,0.00026849,7]
[344297989,1733331072365,-500.0,0.00026849,7]
[344297990,1733331072375,-500.0,0.00026849,7]
[344297991,1733331072385,-1465.31,0.00026849,7]
[344297992,1733331072395,-792.7,0.00026849,7]
[344297993,1733331072406,-606.68,0.00026849,7]
[344297994,1733331072416,-1072.01,0.00026849,7]
[344297995,1733331072426,-500.0,0.00026849,7]
[344297996,1733331072436,-690.93,0.00026849,7]
[344297997,1733331072445,-500.0,0.00026849,7]
[344297998,1733331072455,-500.0,0.00026849,7]
[344297999,1733331072466,-200.0,0.00026849,7]
[344298000,1733331072476,-1130.9,0.00026849,7]
[344298001,1733331072486,-766.18,0.00026849,7]
[344298002,1733331072496,-979.02,0.00026849,7]
[344298003,1733331072511,-500.0,0.00026849,7]
[344298004,1733331072521,-5398.24,0.00026849,7]
[344298005,1733331072531,-500.0,0.00026849,7]
[344298006,1733331072541,-959.45,0.00026849,7]
[344298007,1733331072551,-637.8,0.00026849,7]
[344298008,1733331072562,-571.56,0.00026849,7]
[344298009,1733331072573,-326.04814299,0.00026849,7]
[344298010,1733331072584,-12106.03,0.00026849,7]
[344298011,1733331072695,-271.82222782,0.00026849,7]
[344298012,1733331072707,-1073.97,0.00026849,7]
[344298013,1733331072718,-500.0,0.00026849,7]
[344298014,1733331072728,-500.0,0.00026849,7]
[344298015,1733331072737,-573.2377363,0.00026849,7]
[344298016,1733331072747,-3667.14,0.00026849,7]
[344298017,1733331072761,-500.0,0.00026849,7]
[344298018,1733331072771,-500.0,0.00026849,7]
[344298019,1733331072782,-500.0,0.00026849,7]
[344298020,1733331072793,-619.76,0.00026849,7]
[344298021,1733331072804,-500.0,0.00026849,7]
[344298022,1733331072814,-500.0,0.00026849,7]
[344298023,1733331072825,-500.0,0.00026849,7]
[344298024,1733331072835,-633.52337674,0.00026849,7]
[344298025,1733331072845,-500.0,0.00026849,7]
[344298026,1733331072856,-1922.249001,0.00026849,7]
[344298027,1733331072866,-1604.41,0.00026849,7]
[344298028,1733331072878,-1922.249001,0.00026849,7]
[344298029,1733331072890,-564.17,0.00026849,7]
[344298030,1733331072900,-2600.34,0.00026849,7]
[344298031,1733331072911,-653.89,0.00026849,7]
[344298032,1733331072922,-523.19,0.00026849,7]
[344298033,1733331072934,-500.0,0.00026849,7]
[344298034,1733331072944,-500.0,0.00026849,7]
[344298035,1733331072954,-500.0,0.00026849,7]
[344298036,1733331072964,-500.0,0.00026849,7]
[344298037,1733331072976,-500.0,0.00026849,7]
[344298038,1733331072988,-2252.96,0.00026849,7]
[344298039,1733331072998,-1103.9,0.00026849,7]
[344298040,1733331073013,-200.0,0.00026849,7]
[344298041,1733331073025,-3483.6,0.00026849,7]
[344298042,1733331073036,-500.0,0.00026849,7]
[344298043,1733331073047,-998.79,0.00026849,7]
[344298044,1733331073057,-858.72,0.00026849,7]
[344298045,1733331073067,-1250.23,0.00026849,7]
[344298046,1733331073077,-500.0,0.00026849,7]
[344298047,1733331073087,-500.0,0.00026849,7]
[344298048,1733331073097,-1250.59,0.00026849,7]
[344298049,1733331073108,-674.47,0.00026849,7]
[344298050,1733331073121,-417.127008,0.00026849,7]
[344298051,1733331073131,-1017.66,0.00026849,7]
[344298052,1733331073142,-417.127008,0.00026849,7]
[344298053,1733331073153,-1138.79,0.00026849,7]
[344298054,1733331073162,-634.97,0.00026849,7]
[344298055,1733331073173,-3400.47,0.00026849,7]
[344298056,1733331073183,-2026.96,0.00026849,7]
[344298057,1733331073194,-500.0,0.00026849,7]
[344298058,1733331073204,-500.0,0.00026849,7]
[344298059,1733331073214,-1041.8,0.00026849,7]
[344298060,1733331073224,-1115.9,0.00026849,7]
[344298061,1733331073234,-500.0,0.00026849,7]
[344298062,1733331073244,-591.81,0.00026849,7]